bitfinex-derivatives/quotes_ETHF0:USTF0_20250912
["timestamp","ask_amount","ask_price","bid_price","bid_amount"]
[1757680286876,0.1997,4518.6,4518.5,0.8238]
[1757680287376,3.2078,4518.7,4518.5,0.8238]
[1757680287377,3.2078,4518.7,4518.6,0.294]
[1757680287571,0.3969,4519.1,4519.0,0.1245]
[1757680287875,0.3969,4519.1,4519.0,0.5298]
[1757680288268,0.3969,4519.1,4519.0,0.8443]
[1757680288463,3.4338,4519.7,4519.1,0.3145]
[1757680288762,3.8287,4519.7,4519.6,0.7111]
[1757680290975,4.0971,4519.7,4519.6,0.5066]
[1757680291177,4.0971,4519.7,4519.1,0.3145]
[1757680291385,4.0971,4519.7,4519.6,0.1921]
[1757680291674,4.0971,4519.7,4519.6,0.5066]
[1757680291873,4.0971,4519.7,4519.6,0.3145]
[1757680292276,4.0971,4519.7,4519.6,0.5066]
[1757680293376,3.2078,4519.7,4519.6,0.7111]
[1757680293676,0.0663,4519.9,4519.8,0.3966]
[1757680293875,0.0663,4519.9,4519.8,0.7111]
[1757680295772,3.2078,4520.3,4519.8,0.7111]
[1757680295969,0.1938,4520.1,4520.0,0.5156]
[1757680296169,0.1938,4520.1,4520.0,0.8301]
[1757680297371,0.3949,4520.1,4520.0,0.8301]
[1757680297671,0.2684,4519.5,4519.0,0.1245]
[1757680297874,0.6633,4519.4,4519.3,0.5066]
[1757680298080,0.6633,4519.4,4519.3,0.3145]
[1757680298269,0.6633,4519.4,4519.3,0.5066]
[1757680298577,0.1938,4519.6,4519.5,0.8301]
[1757680298872,0.2601,4519.6,4519.5,0.8301]
[1757680299076,0.0663,4519.6,4519.5,0.8301]
[1757680300875,0.2601,4519.6,4519.5,0.8301]
[1757680301071,0.4612,4519.6,4519.5,0.8301]
[1757680301268,0.6633,4519.6,4519.5,0.5066]
[1757680302478,0.6633,4519.6,4519.5,0.6256]
[1757680302683,0.3949,4519.6,4519.5,0.6256]
[1757680302873,0.6633,4519.6,4519.5,0.6256]
[1757680303275,0.3949,4519.6,4519.5,0.6256]
[1757680303576,0.3949,4519.6,4519.5,0.8301]
[1757680305378,0.3949,4519.6,4519.5,0.6256]
[1757680305379,0.6625,4519.6,4519.5,0.6256]
[1757680305578,4.8885,4519.6,4519.0,0.1245]
[1757680305884,0.6625,4519.0,4518.9,0.3145]
[1757680306380,0.3949,4519.0,4518.6,0.3145]
[1757680306593,0.3949,4518.7,4518.6,0.5066]
[1757680307479,0.3949,4518.7,4518.6,0.7111]
[1757680308478,0.1938,4518.7,4518.6,0.7111]
[1757680308684,3.4016,4519.1,4519.0,0.8301]
[1757680308884,3.6027,4519.1,4519.0,0.8301]
[1757680310092,3.8703,4519.1,4519.0,0.6256]
[1757680311482,3.6027,4519.1,4519.0,0.6256]
[1757680311987,3.6027,4519.1,4519.0,0.8301]
[1757680312587,3.8287,4519.1,4519.0,0.8301]
[1757680313786,4.0963,4519.1,4519.0,0.8301]
[1757680313983,4.0963,4519.1,4519.0,0.6256]
[1757680314784,3.8287,4519.1,4519.0,0.8301]
[1757680315586,3.2078,4519.1,4519.0,0.8301]
[1757680315890,3.2078,4519.6,4519.5,0.8301]
[1757680316285,3.4016,4519.6,4519.5,0.8301]
[1757680316485,3.4016,4519.6,4519.5,0.6256]
[1757680316486,3.8703,4519.6,4519.5,0.6256]
[1757680316685,4.47578594,4519.6,4519.5,0.3145]
[1757680316894,4.70178594,4519.6,4519.5,0.3145]
[1757680317186,4.70178594,4519.6,4519.5,0.5066]
[1757680317493,4.43418594,4519.6,4519.5,0.6256]
[1757680318491,4.70268594,4519.6,4519.5,0.6256]
[1757680318686,4.43418594,4519.6,4519.5,0.8373]
[1757680319488,0.83148594,4519.6,4519.5,0.8373]
[1757680320388,0.0663,4519.8,4519.7,0.4132]
[1757680320591,0.0663,4519.8,4519.7,0.7181]
[1757680320793,0.60561265,4519.8,4519.7,0.7181]
[1757680320989,0.60561265,4520.1,4519.7,0.4132]
[1757680321196,0.60561265,4520.0,4519.8,0.3049]
[1757680321383,3.2078,4520.2,4520.1,0.3049]
[1757680321595,4.01868505,4520.2,4520.1,0.7181]
[1757680322687,3.2078,4520.2,4520.1,0.7181]
[1757680323993,3.81335174,4520.2,4520.1,0.7181]
[1757680324589,0.2685,4520.9,4520.1,0.7181]
[1757680324590,3.2078,4520.9,4520.1,4.7181]
[1757680324791,0.60550685,4520.8,4520.7,0.4132]
[1757680325097,31.9644,4521.5,4520.5,0.1261]
[1757680325098,0.226,4521.3,4521.0,0.1261]
[1757680325295,0.6308,4521.3,4521.2,0.7181]
[1757680325496,1.23611768,4521.3,4521.2,0.7181]
[1757680327791,1.50461768,4521.3,4521.2,0.7181]
[1757680328694,1.50461768,4521.3,4521.2,0.5064]
[1757680329194,1.01011768,4521.3,4521.2,0.7181]
[1757680329399,0.4048,4521.3,4521.2,0.7181]
[1757680330093,3.2078,4521.4,4521.3,0.3049]
[1757680330291,3.2078,4521.4,4521.3,0.7181]
[1757680330799,3.6126,4521.4,4521.3,0.7181]
[1757680333200,3.413,4521.4,4521.3,0.7181]
[1757680333795,3.6126,4521.4,4521.3,0.7181]
[1757680335099,0.4048,4521.4,4521.3,0.7181]
[1757680336201,0.2052,4521.4,4521.3,0.7181]
[1757680336697,0.0663,4521.6,4521.3,0.4132]
[1757680336903,0.0663,4521.6,4521.5,0.8442]
[1757680337303,3.2078,4522.0,4521.6,0.3049]
[1757680337504,3.413,4522.0,4521.9,0.7181]
[1757680338398,3.6126,4522.0,4521.9,0.7181]
[1757680340607,0.2052,4522.0,4521.9,0.7181]
[1757680340811,3.6126,4522.6,4522.5,0.8442]
[1757680344115,0.4048,4522.6,4522.5,0.8442]
[1757680346813,0.2685,4522.5,4522.0,3.8648]
[1757680347013,0.6733,4522.1,4521.7,0.226]
[1757680347207,0.4048,4521.9,4521.8,0.2015]
[1757680347511,0.4048,4521.9,4521.8,0.7181]
[1757680349508,0.6732,4521.9,4521.8,0.5064]
[1757680349711,4.48533932,4521.9,4521.6,0.293]
[1757680350013,0.6715,4521.7,4521.6,0.293]
[1757680350519,0.4031,4521.7,4521.6,0.4898]
[1757680350708,0.6715,4521.7,4521.6,0.4898]
[1757680351212,1.27652581,4521.7,4521.6,0.4898]
[1757680352018,0.2684,4521.6,4520.5,3.3339]
[1757680352214,0.2684,4520.5,4520.4,0.293]
[1757680352513,0.2684,4520.1,4520.0,3.2078]
[1757680352707,0.6715,4520.1,4520.0,3.2078]
[1757680353109,0.6715,4520.1,4520.0,0.4898]
[1757680353308,0.4031,4520.1,4520.0,0.6131]
[1757680353515,0.4031,4520.1,4520.0,0.8143]
[1757680356616,0.6715,4520.1,4520.0,0.8143]
[1757680356914,0.6715,4520.1,4520.0,0.6131]
[1757680357116,0.6715,4520.1,4520.0,0.293]
[1757680357306,0.4031,4519.6,4519.5,0.6131]
[1757680357615,0.6715,4519.6,4519.5,0.6131]
[1757680357815,0.4031,4519.6,4519.5,0.6131]
[1757680358024,0.4031,4519.6,4519.5,0.8143]
[1757680358519,0.4031,4519.6,4519.5,0.6131]
[1757680358711,0.4031,4519.6,4519.5,0.8143]
[1757680359314,0.6715,4519.6,4519.5,0.6131]
[1757680359614,0.2684,4519.5,4519.4,3.2078]
[1757680359812,0.6715,4519.5,4519.4,3.2078]
[1757680360119,0.6715,4519.5,4519.4,3.5008]
[1757680360920,0.6715,4519.5,4519.4,3.6976]
[1757680361118,3.8793,4519.5,4519.4,0.4898]
[1757680361917,3.2078,4519.5,4519.4,0.691]
[1757680362616,0.6715,4519.4,4519.3,0.1968]
[1757680362820,0.6715,4519.4,4519.3,0.4898]
[1757680363619,0.4031,4519.4,4519.3,0.691]
[1757680367215,0.6715,4519.4,4519.3,0.691]
[1757680367521,0.6715,4519.4,4519.3,0.293]
[1757680367725,0.6715,4519.4,4519.3,0.4898]
[1757680368320,0.4031,4519.4,4519.3,0.691]
[1757680369624,0.1925,4519.4,4519.3,0.691]
[1757680369815,3.2078,4519.5,4519.4,0.293]
[1757680370014,3.2078,4519.5,4519.4,0.691]
[1757680370521,3.2078,4519.5,4519.0,0.1233]
[1757680370522,0.226,4519.8,4519.5,0.1233]
[1757680370725,0.4185,4519.8,4519.7,0.398]
[1757680370921,0.4185,4519.8,4519.7,0.691]
[1757680372224,3.2078,4520.0,4519.7,0.398]
[1757680372421,3.2078,4520.0,4519.9,0.398]
[1757680372625,3.2741,4520.0,4519.9,0.691]
[1757680373219,3.4666,4520.0,4519.9,0.691]
[1757680373822,3.6772,4520.0,4519.9,0.691]
[1757680375727,3.9456,4520.0,4519.5,0.1233]
[1757680375931,0.4031,4519.6,4519.5,0.5213]
[1757680376418,0.1925,4519.6,4519.5,0.5213]
[1757680376617,0.1925,4519.6,4519.5,0.8143]
[1757680376819,0.4031,4519.6,4519.5,0.8143]
[1757680379921,0.6707,4519.6,4519.5,0.6131]
[1757680380223,0.0663,4519.8,4519.5,0.8233]
[1757680380431,0.4827,4519.8,4519.7,0.7288]
[1757680380637,0.7503,4519.8,4519.7,0.7288]
[1757680380935,0.0663,4519.8,4519.7,0.7288]
[1757680381841,0.2748,4519.8,4519.7,0.7288]
[1757680382026,0.7503,4519.8,4519.7,0.3066]
[1757680382327,1.35628119,4519.8,4519.7,0.3066]
[1757680382733,1.35628119,4519.8,4519.1,0.3066]
[1757680382734,0.684,4519.2,4519.1,0.3066]
[1757680382932,4.49779539,4519.2,4519.1,0.3066]
[1757680383126,4.49779539,4519.2,4519.1,0.5186]
[1757680384123,4.49779539,4519.2,4519.0,0.1233]
[1757680384124,4.72379539,4519.2,4518.6,0.3066]
[1757680384325,3.8918,4518.7,4518.6,0.3066]
[1757680384526,4.49777496,4518.7,4518.6,0.3066]
[1757680385927,4.49777496,4518.7,4518.6,0.5186]
[1757680386137,4.23017496,4518.7,4518.6,0.7288]
[1757680386435,3.2078,4518.7,4518.6,0.7288]
[1757680386635,3.4163,4518.7,4518.6,0.7288]
[1757680387036,3.6242,4518.7,4518.6,0.7288]
[1757680387433,4.2300039,4518.7,4518.6,0.7288]
[1757680387932,4.4976039,4518.7,4518.6,0.3066]
[1757680388138,0.2085,4518.1,4518.0,31.9853]
[1757680388435,0.2085,4518.1,4518.0,32.2113]
[1757680388634,0.2085,4518.1,4518.0,32.5179]
[1757680389836,0.4164,4518.1,4518.0,1.0781]
[1757680390141,0.684,4518.1,4518.0,0.3066]
[1757680391936,0.0888,4518.0,4517.5,0.1207]
[1757680392138,0.684,4517.5,4517.4,0.3066]
[1757680392533,3.2078,4517.6,4517.5,0.4273]
[1757680392730,3.81234959,4517.6,4517.5,0.8495]
[1757680392930,4.22874959,4517.6,4517.5,0.8495]
[1757680393236,3.6242,4517.6,4517.5,0.8495]
[1757680393842,3.8918,4517.6,4517.5,0.3066]
[1757680394340,3.8918,4517.6,4517.5,0.5186]
[1757680394741,4.1178,4517.6,4517.5,0.5186]
[1757680394940,4.1178,4517.6,4517.1,0.3066]
[1757680394941,4.72174186,4517.6,4517.1,0.3066]
[1757680395142,0.684,4517.2,4517.1,0.3066]
[1757680396340,0.684,4517.2,4517.1,0.5186]
[1757680396541,0.4164,4517.2,4517.1,0.5186]
[1757680396733,0.4164,4517.2,4517.1,0.7288]
[1757680399239,0.684,4517.2,4517.1,0.7288]
[1757680399638,0.4164,4517.2,4517.1,0.7288]
[1757680400340,3.2078,4517.6,4517.1,0.7288]
[1757680400544,3.4163,4517.6,4517.5,0.8495]
[1757680400843,3.2078,4517.6,4517.5,0.8495]
[1757680403047,3.8918,4517.6,4517.5,0.8495]
[1757680403247,3.8918,4517.6,4517.5,0.4273]
[1757680403743,3.6242,4517.6,4517.5,0.6393]
[1757680405247,3.8918,4517.6,4517.5,0.6393]
[1757680405846,0.2676,4517.5,4517.0,0.4273]
[1757680406045,0.684,4517.1,4517.0,0.4273]
[1757680406245,3.8918,4517.1,4517.0,0.3066]
[1757680407249,3.8918,4517.1,4517.0,0.5186]
[1757680407451,0.4164,4517.1,4517.0,0.8495]
[1757680410749,3.8923,4517.1,4517.0,0.8495]
[1757680412455,3.6242,4517.1,4517.0,0.8495]
[1757680412856,0.225,4517.4,4517.0,0.8495]
[1757680413054,0.225,4517.4,4517.1,0.3059]
[1757680413355,0.4187,4517.4,4517.3,0.7236]
[1757680413555,0.6297,4517.4,4517.3,0.7236]
[1757680414454,0.8978,4517.4,4517.3,0.3059]
[1757680414648,1.50274053,4517.4,4516.5,31.9967]
[1757680414857,0.4047,4516.6,4516.5,0.5384]
[1757680415350,0.4047,4516.6,4516.5,0.8443]
[1757680419054,0.6728,4516.6,4516.5,0.3059]
[1757680419761,0.6728,4516.6,4516.5,0.5133]
[1757680419955,0.6728,4516.6,4516.5,0.6361]
[1757680420258,0.60566489,4516.6,4516.0,0.1207]
[1757680420561,0.4047,4516.1,4515.9,3.2078]
[1757680420760,0.6728,4516.0,4515.9,3.2078]
[1757680421154,0.6728,4515.6,4515.5,0.634]
[1757680421458,0.6728,4515.6,4515.1,0.3059]
[1757680421656,0.4047,4515.2,4515.1,0.5133]
[1757680422262,0.4047,4515.2,4515.1,0.7236]
[1757680423567,3.4328,4516.0,4515.6,0.3059]
[1757680423860,0.60479814,4515.9,4515.8,0.7236]
[1757680424058,3.4328,4516.0,4515.8,0.7236]
[1757680424256,3.6265,4516.0,4515.9,0.7236]
[1757680424563,3.2078,4516.0,4515.9,0.7236]
[1757680425059,3.4015,4516.0,4515.9,0.7236]
[1757680425765,0.225,4516.1,4516.0,0.8464]
[1757680425964,0.4187,4516.1,4516.0,0.8464]
[1757680427760,0.225,4516.1,4516.0,0.8464]
[1757680428468,0.4187,4516.1,4516.0,0.8464]
[1757680429262,0.6297,4516.1,4516.0,0.8464]
[1757680431766,0.4187,4516.1,4516.0,0.8464]
[1757680433163,0.6297,4516.1,4516.0,0.8464]
[1757680433367,0.8982,4516.1,4516.0,0.8464]
[1757680433968,0.6297,4516.1,4516.0,0.8464]
[1757680435665,0.4047,4516.1,4516.0,0.8464]
[1757680439562,0.0664,4516.3,4516.0,0.5405]
[1757680439767,0.0664,4516.3,4516.2,0.719]
[1757680440173,0.2081,4516.6,4516.5,0.8458]
[1757680440468,1.01856803,4516.6,4516.5,0.8458]
[1757680440874,0.81286803,4516.6,4516.5,0.8458]
[1757680441768,1.01856803,4516.6,4516.5,0.8458]
[1757680441962,1.01856803,4516.6,4516.1,0.31]
[1757680441963,1.28716803,4516.6,4516.1,0.31]
[1757680442168,0.4138,4516.1,4516.0,0.6315]
[1757680442867,0.4138,4516.1,4516.0,0.8418]
[1757680443074,0.6824,4516.1,4516.0,0.31]
[1757680443479,1.01896063,4516.1,4515.5,0.1228]
[1757680443773,0.2081,4515.7,4515.6,0.719]
[1757680444169,0.4331,4516.1,4516.0,0.8458]
[1757680444468,1.03848879,4516.1,4516.0,0.8458]
[1757680445066,1.24418879,4516.1,4516.0,0.8458]
[1757680446273,1.03848879,4516.1,4516.0,0.8458]
[1757680448272,1.24418879,4516.1,4516.0,0.8458]
[1757680449375,0.60538879,4516.1,4516.0,0.8458]
[1757680449571,0.0664,4516.3,4516.2,0.719]
[1757680449869,0.60606446,4516.3,4516.2,0.719]
[1757680450072,3.4328,4516.7,4516.2,0.409]
[1757680450275,0.81161351,4516.6,4516.5,0.8458]
[1757680450666,1.01731351,4516.6,4516.5,0.8458]
[1757680450870,1.28591351,4516.6,4516.5,0.8458]
[1757680451272,1.28591351,4516.6,4516.0,0.1268]
[1757680451477,0.6824,4516.2,4516.1,0.5087]
[1757680451678,1.28591351,4516.2,4516.1,0.5087]
[1757680452270,1.01731351,4516.2,4516.1,0.719]
[1757680453675,4.49371351,4516.2,4516.1,0.31]
[1757680454078,4.49371351,4516.2,4516.1,0.5087]
[1757680455078,4.49371351,4516.2,4516.1,0.31]
[1757680456982,4.71871351,4516.2,4516.1,0.5087]
[1757680458282,4.71871351,4516.2,4515.5,0.1228]
[1757680458484,0.2081,4515.7,4515.6,0.719]
[1757680458780,0.81161351,4515.7,4515.6,0.719]
[1757680459283,0.60351351,4515.7,4515.6,0.719]
[1757680459484,0.60351351,4516.1,4515.6,0.409]
[1757680459680,0.81161351,4516.1,4516.0,0.5358]
[1757680459881,0.81161351,4516.1,4516.0,0.8458]
[1757680460782,0.60351351,4516.1,4516.0,0.8458]
[1757680460976,0.81161351,4516.1,4516.0,0.8458]
[1757680461284,1.28591351,4516.1,4516.0,0.6355]
[1757680462280,0.81161351,4516.1,4516.0,0.8458]
[1757680463380,0.60351351,4516.1,4516.0,0.8458]
[1757680463580,0.0664,4516.3,4516.0,1.15571]
[1757680463886,0.0664,4516.3,4516.2,0.719]
[1757680465789,0.2745,4516.3,4516.2,0.719]
[1757680465989,0.7488,4516.3,4516.2,0.31]
[1757680466289,1.28577214,4516.3,4516.2,0.5087]
[1757680467190,0.6824,4516.3,4516.2,0.5087]
[1757680467488,0.4138,4516.3,4516.2,0.719]
[1757680468486,0.1991,4516.6,4516.5,0.1187]
[1757680468686,0.99772233,4516.6,4516.5,0.8259]
[1757680469688,0.80222233,4516.6,4516.5,0.8259]
[1757680471190,0.60312233,4516.6,4516.5,0.8259]
[1757680471581,0.225,4516.7,4516.6,0.3144]
[1757680471787,0.82801768,4516.7,4516.6,0.7072]
[1757680471989,0.60301768,4516.7,4516.6,0.7072]
[1757680472392,0.0664,4516.8,4516.7,0.3144]
[1757680472590,0.0664,4516.8,4516.7,0.7072]
[1757680472886,0.6029614,4516.8,4516.7,0.3928]
[1757680473091,3.2078,4517.2,4517.1,0.3928]
[1757680473388,4.00987333,4517.2,4517.1,0.7072]
[1757680473792,4.20537333,4517.2,4517.1,0.3144]
[1757680473990,4.47347333,4517.2,4517.1,0.3144]
[1757680474188,4.47347333,4517.2,4517.1,0.5098]
[1757680474788,4.20537333,4517.2,4517.1,0.7072]
[1757680477389,3.81077333,4517.2,4517.1,0.7072]
[1757680478995,3.2078,4517.2,4517.1,0.7072]
[1757680479205,3.4069,4517.2,4517.1,0.7072]
[1757680479397,3.6024,4517.2,4517.1,0.7072]
[1757680479794,4.47349992,4517.2,4517.1,0.5098]
[1757680480094,4.47349992,4517.2,4517.1,0.3144]
[1757680482695,4.47349992,4517.2,4516.6,0.3144]
[1757680482901,3.8705,4516.7,4516.1,0.3144]
[1757680483097,0.3946,4516.2,4515.7,3.2078]
[1757680483307,0.6627,4515.9,4515.8,0.3144]
[1757680484190,0.3946,4515.9,4515.6,0.3144]
[1757680484390,3.8705,4515.7,4515.1,0.3144]
[1757680484595,0.87056885,4515.6,4515.1,0.53585]
[1757680484800,0.1991,4515.2,4515.1,0.7072]
[1757680485705,0.6627,4515.6,4515.5,0.3141]
[1757680485897,0.99703643,4515.6,4515.5,0.6285]
[1757680486201,0.99703643,4515.6,4515.5,0.8259]
[1757680486404,3.2078,4515.7,4515.5,0.8259]
[1757680486707,3.2078,4515.7,4515.6,0.7072]
[1757680487006,3.4069,4515.7,4515.6,0.7072]
[1757680487204,0.1991,4515.7,4515.6,0.7072]
[1757680488703,0.6631,4515.7,4515.6,0.3144]
[1757680492402,0.3946,4515.7,4515.6,0.5098]
[1757680492601,0.3946,4515.7,4515.6,0.7072]
[1757680493810,0.225,4516.5,4516.2,0.3144]
[1757680494011,0.225,4516.5,4516.4,0.3144]
[1757680494209,0.4241,4516.5,4516.4,0.7072]
[1757680495914,0.0664,4516.7,4516.6,0.3928]
[1757680496208,0.0664,4516.7,4516.6,0.7072]
[1757680496911,0.2655,4516.7,4516.6,0.7072]
[1757680497312,0.1991,4516.7,4516.6,0.7072]
[1757680497713,0.3946,4516.7,4516.6,0.7072]
[1757680498508,3.2078,4516.9,4516.7,0.2928]
[1757680498712,3.2078,4516.9,4516.8,0.4112]
[1757680499008,3.2078,4516.9,4516.8,0.704]
[1757680500007,3.405,4516.9,4516.8,0.704]
[1757680500914,0.0664,4517.1,4517.0,0.8292]
[1757680501305,0.0664,4517.1,4517.0,4.8292]
[1757680501615,3.8327,4518.2,4518.1,0.704]
[1757680501820,4.43586858,4518.2,4518.1,0.704]
[1757680502024,4.70426858,4518.2,4518.1,0.704]
[1757680502417,4.1011,4518.2,4518.1,0.704]
[1757680502618,4.1011,4518.2,4518.1,0.5017]
[1757680503422,4.1011,4518.2,4518.1,0.704]
[1757680503423,3.8327,4518.2,4518.1,0.704]
[1757680504118,4.43548748,4518.2,4518.1,0.704]
[1757680504316,4.00778748,4518.2,4518.1,0.704]
[1757680504520,3.405,4518.2,4518.1,0.704]
[1757680505121,0.1972,4518.2,4518.1,0.704]
[1757680505426,0.2027,4518.3,4518.2,0.2089]
[1757680505626,0.2027,4518.3,4518.0,0.1252]
[1757680505627,0.6683,4518.3,4518.0,0.1252]
[1757680505923,0.6683,4518.3,4517.5,0.1252]
[1757680505924,0.3999,4517.2,4517.1,0.2089]
[1757680506130,0.3999,4517.2,4517.1,0.704]
[1757680507129,0.6683,4517.2,4517.1,0.5017]
[1757680507427,0.3999,4517.2,4517.1,0.5017]
[1757680508829,0.6683,4517.2,4517.1,0.5017]
[1757680509023,0.3999,4517.2,4517.1,0.704]
[1757680510831,0.3999,4516.6,4516.5,0.6204]
[1757680511235,0.3999,4516.6,4516.5,0.8227]
[1757680511524,3.2078,4517.5,4517.0,0.1252]
[1757680511730,3.2078,4517.5,4517.4,0.704]
[1757680512134,3.405,4517.5,4517.4,0.704]
[1757680513129,3.6077,4517.5,4517.1,0.2928]
[1757680513330,0.6683,4517.2,4517.1,0.2928]
[1757680513926,0.6683,4517.2,4517.1,0.5017]
[1757680515233,0.2684,4517.1,4516.1,0.2928]
[1757680515431,0.2684,4517.1,4516.0,0.1252]
[1757680515432,0.1972,4515.6,4515.5,3.5419]
[1757680515731,0.1972,4515.6,4515.5,0.5364]
[1757680516031,0.1972,4515.6,4515.5,0.8292]
[1757680516228,3.2078,4516.0,4515.5,0.5364]
[1757680516533,3.405,4516.0,4515.9,0.704]
[1757680516739,3.2078,4516.0,4515.9,0.704]
[1757680517227,3.405,4516.0,4515.9,0.704]
[1757680517429,0.1972,4516.0,4515.9,0.704]
[1757680518533,0.3999,4516.0,4515.9,0.704]
[1757680519332,4.1011,4516.5,4516.4,0.2928]
[1757680519535,3.8327,4516.5,4516.1,0.2928]
[1757680519731,0.3999,4516.1,4516.0,0.3341]
[1757680520237,0.3999,4516.1,4516.0,0.8292]
[1757680520635,0.1972,4516.1,4516.0,0.8292]
[1757680521031,3.2078,4516.5,4516.1,0.2928]
[1757680521231,3.405,4516.5,4516.4,0.704]
[1757680521433,3.6077,4516.5,4516.4,0.704]
[1757680523031,3.8761,4516.5,4516.4,0.2928]
[1757680523237,0.3999,4516.1,4516.0,0.1252]
[1757680523434,0.6683,4516.1,4516.0,0.6269]
[1757680528846,3.4762,4516.5,4516.0,0.8292]
[1757680529145,3.4167,4516.5,4516.4,0.7277]
[1757680529346,3.2078,4516.5,4516.4,0.7277]
[1757680530841,0.225,4516.9,4516.5,0.1159]
[1757680531049,0.9097,4516.9,4516.8,0.5166]
[1757680531249,0.4163,4516.6,4516.5,0.3103]
[1757680531449,0.6847,4516.6,4516.5,0.3103]
[1757680531949,0.6847,4516.6,4516.5,0.5166]
[1757680532446,3.8925,4516.6,4516.5,0.5166]
[1757680532847,3.8925,4516.6,4516.0,0.4355]
[1757680533046,0.2684,4516.5,4516.0,0.4355]
[1757680533248,0.4163,4516.1,4516.0,0.8529]
[1757680534647,3.8925,4516.1,4515.6,0.3103]
[1757680534848,0.2089,4515.7,4515.6,0.5166]
[1757680535048,0.2089,4515.7,4515.6,0.7277]
[1757680538446,0.6847,4515.7,4515.6,0.3103]
[1757680538759,1.28859278,4515.7,4515.1,0.3103]
[1757680538940,3.8925,4515.2,4515.1,0.5166]
[1757680539254,3.6241,4515.2,4515.1,0.7277]
[1757680539746,3.4167,4515.2,4515.1,0.7277]
[1757680539954,3.2078,4515.2,4515.1,0.7277]
[1757680540350,3.4167,4515.2,4515.1,0.7277]
[1757680540548,3.2078,4515.2,4515.1,0.7277]
[1757680541348,0.4934,4515.7,4515.2,0.3103]
[1757680541657,0.4934,4515.7,4515.0,0.1252]
[1757680541658,0.225,4515.7,4515.5,0.8436]
[1757680541851,3.2078,4515.8,4515.6,0.3103]
[1757680542152,3.2078,4515.8,4515.7,0.7277]
[1757680542453,4.02074407,4515.8,4515.7,0.7277]
[1757680543455,3.4167,4515.8,4515.7,0.7277]
[1757680544056,3.2078,4515.8,4515.7,0.7277]
[1757680545144,3.4167,4515.8,4515.7,0.7277]
[1757680545752,3.2078,4515.8,4515.7,0.7277]
[1757680546755,3.4167,4515.8,4515.7,0.7277]
[1757680549352,2.88334417,4515.8,4515.7,0.7277]
[1757680549552,3.09074417,4515.8,4515.7,0.7277]
[1757680549859,3.35894417,4515.8,4515.7,0.5166]
[1757680550359,3.09074417,4515.8,4515.7,0.7277]
[1757680551654,2.67444417,4515.8,4515.7,0.7277]
[1757680552455,2.88334417,4515.8,4515.7,0.7277]
[1757680552958,3.09074417,4515.8,4515.7,0.7277]
[1757680553963,0.4163,4515.8,4515.7,0.7277]
[1757680555957,0.2089,4515.8,4515.7,0.7277]
[1757680556461,0.2089,4516.1,4516.0,0.1159]
[1757680556756,0.81377204,4516.1,4516.0,0.5333]
[1757680557159,0.0664,4516.3,4516.1,0.3103]
[1757680557362,0.0664,4516.3,4516.0,0.5333]
[1757680557363,0.2753,4516.3,4516.2,0.4174]
[1757680557563,0.2089,4516.3,4516.2,0.7277]
[1757680558559,0.81373579,4516.3,4516.2,0.7277]
[1757680560362,1.01313579,4516.3,4516.2,0.7277]
[1757680560564,0.60483579,4516.3,4516.2,0.7277]
[1757680560755,0.0664,4516.7,4516.5,0.1201]
[1757680560955,0.4707,4516.7,4516.6,0.7027]
[1757680561262,1.07558071,4516.7,4516.6,0.7027]
[1757680561454,0.2713,4516.7,4516.6,0.7027]
[1757680561650,0.0664,4516.7,4516.6,0.7027]
[1757680561853,0.2713,4516.7,4516.6,0.7027]
[1757680562362,0.0664,4516.7,4516.6,0.7027]
[1757680562666,0.0664,4516.7,4516.6,0.9277]
[1757680563555,0.2713,4516.7,4516.6,0.7027]
[1757680563764,0.2713,4516.7,4516.6,0.9277]
[1757680564263,0.6726,4516.7,4516.6,0.5013]
[1757680564461,0.6726,4516.7,4516.6,0.7263]
[1757680565161,0.6726,4516.7,4516.6,0.2999]
[1757680566155,0.6726,4516.7,4516.1,0.5249]
[1757680566456,0.6726,4516.2,4516.1,0.7263]
[1757680566951,0.6726,4516.2,4515.8,0.225]
[1757680567163,0.4043,4516.0,4515.9,0.2999]
[1757680567363,0.6726,4516.0,4515.9,0.5013]
[1757680568665,0.6726,4516.0,4515.9,0.2999]
[1757680570461,0.7617,4516.0,4515.6,0.2999]
[1757680570667,0.7617,4516.0,4514.2,31.9]
[1757680570668,0.4043,4515.3,4515.2,0.2999]
[1757680570865,0.4043,4515.3,4515.0,0.2999]
[1757680571067,0.6726,4515.1,4515.0,0.2999]
[1757680571760,0.6726,4514.9,4514.8,0.2999]
[1757680571966,0.4043,4514.4,4514.3,0.7263]
[1757680572264,0.6726,4514.4,4514.3,0.5013]
[1757680572659,0.6726,4514.4,4514.2,35.1078]
[1757680572660,0.2683,4514.3,4514.2,35.4077]
[1757680573471,0.6726,4514.3,4514.2,3.7091]
[1757680573970,0.4043,4514.3,4514.2,3.7091]
[1757680574169,0.4043,4514.3,4514.2,3.9105]
[1757680574870,0.6726,4514.3,4514.2,3.9105]
[1757680575566,0.4043,4514.3,4514.2,3.9105]
[1757680576966,0.6726,4514.3,4514.2,3.9105]
[1757680577467,0.4043,4514.3,4514.2,3.9105]
[1757680578263,0.2683,4514.7,4514.2,3.9105]
[1757680578566,3.2078,4514.8,4514.6,0.2999]
[1757680578870,3.2078,4514.8,4514.7,0.7027]
[1757680580672,3.4127,4514.8,4514.7,0.7027]
[1757680582467,3.4328,4515.3,4514.7,0.7027]